bitfinex-derivatives/quotes_SOLF0:USTF0_20250914
["timestamp","ask_amount","ask_price","bid_price","bid_amount"]
[1757821800384,271.16,247.84,247.67,1.29058586]
[1757821800590,272.37,247.84,247.68,6.75]
[1757821800780,271.16,247.84,247.68,6.75]
[1757821800982,1.21,247.83,247.68,6.75]
[1757821802585,1.21,247.83,247.68,8.04058586]
[1757821805594,1.21,247.81,247.68,6.75]
[1757821806086,271.16,247.84,247.68,6.75]
[1757821806687,2.50058586,247.85,247.68,6.75]
[1757821807085,2.50058586,247.85,247.69,6.75]
[1757821810095,1.21,247.84,247.69,6.75]
[1757821810297,1.21,247.88,247.69,8.04058586]
[1757821810494,1.21,247.88,247.69,6.77804428]
[1757821810693,1.21,247.88,247.74,6.75]
[1757821812993,1.21,247.93,247.74,6.75]
[1757821813198,1.21,247.93,247.78,6.75]
[1757821814592,1.29058586,247.95,247.78,6.75]
[1757821814794,271.16,247.98,247.78,6.75]
[1757821814795,271.16,247.98,247.82,6.75]
[1757821814995,1.21,247.97,247.82,6.75]
[1757821815594,1.21,247.97,247.83,6.75]
[1757821820305,1.21,247.94,247.83,6.75]
[1757821820500,1.29058586,247.91,247.83,6.75]
[1757821823099,1.21,248.0,247.83,6.75]
[1757821824000,1.21,248.04,247.87,1.29058586]
[1757821824301,1.21,248.04,247.89,6.75]
[1757821828210,1.29058586,248.08,247.92,6.55]
[1757821837912,16.8,248.12,247.92,6.55]
[1757821837913,1.2,248.03,247.92,6.55]
[1757821838119,1.2,247.99,247.92,6.55]
[1757821838813,329.33832201,248.13,247.92,6.55]
[1757821838814,1.29058586,248.01,247.92,6.55]
[1757821839420,2.49058586,248.01,247.92,6.55]
[1757821839610,329.33832201,248.13,247.92,6.55]
[1757821839611,1.29058586,248.04,247.92,6.55]
[1757821840322,1.2,247.99,247.92,6.55]
[1757821840720,2.49058586,247.96,247.92,6.55]
[1757821841124,1.29058586,247.96,247.82,11.81230068]
[1757821841326,1.2,247.95,247.83,6.6]
[1757821842320,1.29058586,247.93,247.83,6.6]
[1757821844433,1.2,247.92,247.83,6.6]
[1757821845131,1.2,247.92,247.82,12.10627574]
[1757821845432,1.2,247.92,247.79,18.96834888]
[1757821845624,1.29058586,247.93,247.79,18.96834888]
[1757821846127,1.2,247.88,247.79,18.96834888]
[1757821849535,1.2,247.96,247.8,7.89058586]
[1757821852338,1.2,247.96,247.85,0.82418696]
[1757821852540,1.2,247.96,247.86,6.65]
[1757821855139,1.2,247.93,247.86,6.65]
[1757821855939,0.82418696,247.94,247.86,6.65]
[1757821856138,0.82418696,247.97,247.86,6.65]
[1757821857542,1.2,247.98,247.88,0.82418696]
[1757821857844,1.2,247.98,247.89,6.52]
[1757821858941,2.01418696,248.02,247.89,6.52]
[1757821859340,2.01418696,248.02,247.91,6.52]
[1757821868054,0.82418696,248.05,247.94,6.52]
[1757821869050,0.82418696,248.05,247.94,7.34418696]
[1757821872050,1.19,248.06,247.94,7.34418696]
[1757821874160,0.82418696,248.08,247.94,7.34418696]
[1757821874358,0.82418696,248.08,247.97,0.82418696]
[1757821874561,0.82418696,248.08,247.98,6.52]
[1757821875161,0.82418696,248.07,247.98,6.52]
[1757821875461,2.01418696,248.01,247.98,6.52]
[1757821875762,2.01418696,248.01,247.9,6.52]
[1757821875957,0.82418696,247.98,247.9,6.52]
[1757821878262,0.82418696,247.95,247.84,6.52]
[1757821878565,2.01418696,247.95,247.84,6.52]
[1757821880958,0.82418696,247.95,247.84,7.34418696]
[1757821887170,0.82418696,247.95,247.84,6.52]
[1757821887361,0.82418696,247.92,247.84,6.52]
[1757821889366,0.82418696,247.95,247.84,6.52]
[1757821890868,1.2,247.94,247.84,6.52]
[1757821893774,0.82418696,247.92,247.84,6.52]
[1757821894077,1.2,247.91,247.84,6.52]
[1757821894870,1.2,248.01,247.84,6.52]
[1757821895070,0.82418696,247.95,247.84,6.52]
[1757821895372,0.82418696,247.95,247.84,7.34418696]
[1757821897974,0.82418696,247.96,247.84,7.34418696]
[1757821898472,0.82418696,247.96,247.84,6.52]
[1757821906478,1.2,247.95,247.84,7.34418696]
[1757821906680,1.2,247.95,247.84,6.52]
[1757821906882,1.2,247.95,247.84,7.34418696]
[1757821908375,0.82418696,247.96,247.84,7.34418696]
[1757821908980,1.2,247.99,247.87,0.82418696]
[1757821909183,1.2,247.99,247.88,6.55]
[1757821911581,1.2,247.96,247.88,6.55]
[1757821911978,0.82418696,247.94,247.88,6.55]
[1757821912183,1.2,247.93,247.8,6.49]
[1757821912484,1.2,247.93,247.8,7.31418696]
[1757821914488,1.2,247.93,247.8,6.49]
[1757821920287,1.2,247.93,247.81,6.51]
[1757821924287,1.19,247.96,247.81,6.51]
[1757821924592,2.79981344,247.95,247.81,6.51]
[1757821924794,1.19,247.93,247.81,6.51]
[1757821931691,15.14822971,248.0,247.81,6.51]
[1757821931891,1.19,247.98,247.81,6.51]
[1757821932092,2.80101288,247.97,247.82,6.51]
[1757821932292,2.80101288,247.96,247.82,6.51]
[1757821932590,1.19,247.98,247.82,6.51]
[1757821932796,2.76167187,247.97,247.82,6.51]
[1757821932997,2.76167187,247.96,247.82,6.51]
[1757821933194,1.19,247.98,247.82,6.51]
[1757821933396,2.76170317,247.97,247.82,6.51]
[1757821933595,2.76170317,247.96,247.82,6.51]
[1757821933893,1.19,247.98,247.84,6.77804428]
[1757821934095,1.19,247.98,247.85,6.51]
[1757821934294,31.24,248.03,247.85,6.51]
[1757821934295,1.19,248.03,247.86,6.51]
[1757821934491,1.28822971,248.0,247.86,6.51]
[1757821934692,1.19,247.95,247.86,6.51]
[1757821934893,1.19,247.93,247.86,6.51]
[1757821935695,2.7607208,247.92,247.8,6.51]
[1757821935893,1.19,247.91,247.8,6.51]
[1757821936996,1.19,247.91,247.8,11.03512808]
[1757821939396,1.28822971,247.92,247.8,6.51]
[1757821939794,1.19,247.91,247.8,6.51]
[1757821940395,1.28822971,247.92,247.8,6.51]
[1757821940596,1.19,247.91,247.8,6.51]
[1757821940794,1.28822971,247.92,247.8,6.51]
[1757821941699,27.79,247.91,247.8,6.51]
[1757821945406,1.19,247.91,247.8,6.51]
[1757821964819,16.58029468,248.0,247.8,6.51]
[1757821965123,1.19,247.96,247.82,6.7]
[1757821965822,1.28822971,247.97,247.82,6.7]
[1757821966417,1.28822971,247.93,247.82,6.7]
[1757821966721,1.19,247.92,247.82,6.7]
[1757821966913,1.28822971,247.93,247.82,6.7]
[1757821967113,1.19,247.9,247.82,6.7]
[1757821972024,1.28822971,247.93,247.82,6.7]
[1757821972225,2.75913664,247.92,247.82,6.7]
[1757821972526,2.75913664,247.91,247.82,6.7]
[1757821972825,1.28822971,247.93,247.82,6.7]
[1757821973018,2.75847171,247.92,247.82,6.7]
[1757821973219,2.75858213,247.91,247.82,6.7]
[1757821973420,1.28822971,247.93,247.82,6.7]
[1757821973621,2.75866031,247.92,247.82,6.7]
[1757821973821,2.75866031,247.91,247.82,6.7]
[1757821974021,1.2,247.94,247.82,6.7]
[1757821974226,2.75892014,247.93,247.82,6.7]
[1757821974428,1.2,247.94,247.82,6.7]
[1757821976731,2.02454656,247.94,247.82,6.7]
[1757821979324,2.76160703,247.93,247.82,6.7]
[1757821979523,2.02454656,247.94,247.82,6.7]
[1757821979726,2.76131871,247.93,247.82,6.7]
[1757821979931,2.02454656,247.94,247.82,6.7]
[1757821980127,2.7604724,247.93,247.82,6.7]
[1757821980332,2.02454656,247.94,247.82,6.7]
[1757821980531,2.76028451,247.93,247.82,6.7]
[1757821980729,2.02454656,247.94,247.82,6.7]
[1757821980925,2.75992963,247.93,247.82,6.7]
[1757821981129,2.02454656,247.94,247.82,6.7]
[1757821981333,2.76025551,247.93,247.82,6.7]
[1757821981537,2.02454656,247.94,247.82,6.7]
[1757821981734,2.76011929,247.93,247.82,6.7]
[1757821981933,2.02454656,247.94,247.82,6.7]
[1757821982133,2.76076436,247.93,247.82,6.7]
[1757821982331,0.82454656,247.97,247.85,6.75]
[1757821982730,0.82454656,247.97,247.86,4.52443224]
[1757821983038,0.82454656,247.97,247.87,6.75]
[1757821983635,1.2,248.02,247.88,6.75]
[1757821983839,0.82454656,247.99,247.88,6.75]
[1757821987241,0.82454656,247.99,247.88,11.27443224]
[1757821987446,0.82454656,247.99,247.89,6.75]
[1757821989645,1.2,248.01,247.89,6.75]
[1757821989838,0.82454656,248.0,247.89,6.75]
[1757821994647,0.82454656,248.0,247.89,7.57454656]
[1757821995850,0.82454656,248.0,247.89,6.75]
[1757822002253,0.82454656,247.97,247.89,6.75]
[1757822002948,2.02454656,247.97,247.89,6.75]
[1757822004458,0.82454656,247.96,247.89,6.75]
[1757822004856,0.82454656,247.93,247.89,6.75]
[1757822005053,0.82454656,247.9,247.84,6.75]
[1757822007453,0.82454656,247.87,247.84,6.75]
[1757822007656,2.02454656,247.87,247.84,6.75]
[1757822009262,1.2,247.87,247.84,6.75]
[1757822009462,2.02454656,247.87,247.84,6.75]
[1757822009663,0.82454656,247.87,247.79,6.82]
[1757822011463,33.04,247.95,247.78,6.82]
[1757822011464,0.82454656,247.84,247.78,6.82]
[1757822016176,0.82454656,247.81,247.78,6.82]
[1757822019982,0.82454656,247.81,247.71,6.82]
[1757822021283,0.82454656,247.84,247.73,6.82]
[1757822021479,0.82454656,247.88,247.78,0.82454656]
[1757822021683,0.82454656,247.88,247.79,6.82]
[1757822026982,2.02454656,247.85,247.74,6.82]
[1757822036400,1.2,247.85,247.74,6.82]
[1757822043000,1.21,247.86,247.74,6.82]
[1757822043200,1.21,247.82,247.74,6.82]
[1757822043395,1.28918415,247.83,247.74,6.82]
[1757822043797,1.21,247.82,247.74,6.82]
[1757822047500,1.28918415,247.83,247.7,6.4]
[1757822047703,1.21,247.82,247.7,6.4]
[1757822048305,1.28918415,247.83,247.7,6.4]
[1757822048502,1.21,247.82,247.7,6.4]
[1757822048707,1.28918415,247.83,247.7,6.4]
[1757822049207,1.21,247.82,247.7,6.4]
[1757822049404,1.28918415,247.83,247.7,6.4]
[1757822049606,1.21,247.82,247.7,6.4]
[1757822050208,1.28918415,247.83,247.7,6.4]
[1757822050598,1.28918415,247.79,247.7,6.4]
[1757822050799,1.21,247.78,247.7,6.4]
[1757822051205,14.08918415,247.79,247.7,6.4]
[1757822051404,1.21,247.78,247.7,6.4]
[1757822051707,14.08918415,247.79,247.65,6.4]
[1757822051903,1.21,247.78,247.65,6.4]
[1757822052404,14.08918415,247.79,247.65,6.4]
[1757822052806,1.21,247.78,247.65,6.4]
[1757822053402,14.08918415,247.79,247.65,6.4]
[1757822053913,1.21,247.78,247.65,6.4]
[1757822055214,13.74,247.77,247.65,6.4]
[1757822056311,1.21,247.78,247.65,6.4]
[1757822056613,26.74,247.77,247.65,6.4]
[1757822057312,1.21,247.76,247.65,6.4]
[1757822057709,26.74,247.77,247.65,6.4]
[1757822058906,1.21,247.76,247.65,6.4]
[1757822059108,26.74,247.77,247.65,6.4]
[1757822059309,1.21,247.76,247.65,6.4]
[1757822059514,1.28918415,247.75,247.65,6.4]
[1757822059712,1.21,247.74,247.57,6.4]
[1757822059912,1.28918415,247.75,247.57,6.4]
[1757822060212,1.28918415,247.75,247.58,6.4]
[1757822061113,1.21,247.74,247.58,6.4]
[1757822061319,1.28918415,247.75,247.58,6.4]
[1757822062018,1.21,247.74,247.58,6.4]
[1757822062216,1.28918415,247.75,247.58,6.4]
[1757822062518,1.21,247.74,247.58,6.4]
[1757822062724,1.28918415,247.75,247.58,6.4]
[1757822063023,1.21,247.74,247.58,6.4]
[1757822063218,1.28918415,247.75,247.58,6.4]
[1757822063418,1.21,247.74,247.58,6.4]
[1757822063718,13.48649272,247.75,247.58,6.4]
[1757822064019,1.21,247.74,247.58,6.4]
[1757822064818,13.48649272,247.75,247.58,6.4]
[1757822065317,1.21,247.7,247.58,6.4]
[1757822067123,1.28918415,247.71,247.58,6.4]
[1757822067521,1.21,247.7,247.58,6.4]
[1757822067813,1.28918415,247.71,247.58,6.4]
[1757822068013,1.22,247.7,247.58,6.4]
[1757822068219,24.30730857,247.75,247.58,6.4]
[1757822068419,2.50918415,247.67,247.58,6.4]
[1757822068815,3.42,247.66,247.58,6.4]
[1757822069820,4.64,247.66,247.58,6.4]
[1757822070721,1.22,247.66,247.58,6.4]
[1757822070923,7.84,247.66,247.58,6.4]
[1757822076529,1.22,247.66,247.58,6.4]
[1757822076729,23.94,247.65,247.58,6.4]
[1757822079233,1.28918415,247.64,247.58,6.4]
[1757822080937,1.28918415,247.64,247.42,17.72]
[1757822080938,2.50918415,247.59,247.49,6.78]
[1757822082237,1.22,247.58,247.49,6.78]
[1757822083332,2.50918415,247.55,247.49,6.78]
[1757822083737,9.12918415,247.55,247.49,6.78]
[1757822085032,9.12918415,247.55,247.38,12.33431408]
[1757822085033,7.90918415,247.55,247.38,12.33431408]
[1757822085238,11.62,247.54,247.39,6.78]
[1757822085431,15.18,247.53,247.39,6.78]
[1757822085636,1.28918415,247.51,247.39,6.78]
[1757822086538,2.50918415,247.51,247.39,6.78]
[1757822088241,1.22,247.5,247.39,6.78]
[1757822089439,1.28918415,247.48,247.39,6.78]
[1757822090940,29.22,247.51,247.39,6.78]
[1757822092142,42.96,247.5,247.39,6.78]
[1757822092737,271.36,247.56,247.39,6.78]
[1757822092946,370.68,247.56,247.39,6.78]
[1757822093246,271.36,247.56,247.39,6.78]
[1757822093443,370.68,247.56,247.39,6.78]
[1757822096843,99.28,247.55,247.39,6.78]
[1757822097241,99.28,247.55,247.41,1.28918415]
[1757822097442,99.28,247.55,247.42,6.95]
[1757822097744,99.26,247.54,247.42,6.95]
[1757822098345,0.82699664,247.55,247.44,0.82699664]
[1757822098544,99.24,247.54,247.45,6.8]
[1757822100048,2.04699664,247.55,247.45,6.8]
[1757822100248,99.24,247.54,247.45,6.8]
[1757822100449,0.82699664,247.6,247.49,6.8]
[1757822100651,100.04699664,247.6,247.49,6.8]
[1757822101052,0.82699664,247.58,247.49,6.8]
[1757822102548,0.82699664,247.57,247.49,6.8]
[1757822105554,0.82699664,247.54,247.44,6.8]
[1757822105751,1.22,247.59,247.44,6.8]
[1757822106053,0.82699664,247.54,247.44,6.8]
[1757822108256,1.22,247.56,247.44,6.8]
[1757822108461,0.82699664,247.51,247.44,6.8]
[1757822108659,0.82699664,247.53,247.44,6.8]
[1757822112259,2.04699664,247.53,247.44,6.8]
[1757822112459,0.82699664,247.5,247.44,6.8]
[1757822114063,0.82699664,247.53,247.44,6.8]
[1757822115561,1.22,247.52,247.44,6.8]
[1757822115765,0.82699664,247.5,247.44,6.8]
[1757822117968,0.82699664,247.47,247.44,6.8]
[1757822118157,0.82699664,247.47,247.33,6.8]
[1757822118361,0.82699664,247.44,247.33,6.8]
[1757822118762,0.82699664,247.44,247.33,7.62699664]
[1757822119171,0.82699664,247.44,247.33,6.8]
[1757822119562,0.82699664,247.47,247.35,0.82699664]
[1757822119867,0.82699664,247.47,247.36,6.8]
[1757822121271,0.82699664,247.44,247.36,6.8]
[1757822128774,0.82699664,247.45,247.36,6.8]
[1757822130175,2.05699664,247.45,247.36,6.8]
[1757822132277,1.23,247.45,247.36,6.8]
[1757822132482,0.82699664,247.43,247.36,6.8]
[1757822132682,1.23,247.45,247.36,6.8]
[1757822132877,0.82699664,247.44,247.36,6.8]
[1757822135492,1.23,247.45,247.36,6.8]
[1757822135690,2.05699664,247.45,247.36,6.8]
[1757822137490,0.82699664,247.45,247.36,6.8]
[1757822137690,0.82699664,247.48,247.36,6.8]
[1757822139799,0.82699664,247.48,247.39,7.01]
[1757822140190,0.82699664,247.58,247.47,0.82699664]
[1757822140391,0.82699664,247.55,247.48,7.01]
[1757822140590,0.82699664,247.52,247.48,7.01]
[1757822140796,1.23,247.51,247.48,7.01]
[1757822141798,1.23,247.51,247.36,13.39708225]
[1757822141799,1.23,247.51,247.4,7.01]
[1757822142701,2.05699664,247.57,247.46,7.01]
[1757822143595,0.82699664,247.6,247.46,7.01]
[1757822144797,0.82699664,247.6,247.48,7.01]
[1757822145603,0.82699664,247.54,247.48,7.01]
[1757822145803,0.82699664,247.54,247.44,7.01]
[1757822146195,1.23,247.53,247.44,7.01]
[1757822146398,0.82699664,247.51,247.44,7.01]
[1757822147599,0.82699664,247.54,247.44,7.01]
[1757822150506,2.05699664,247.54,247.44,7.01]
[1757822151012,2.05699664,247.54,247.46,0.82699664]
[1757822151698,0.82699664,247.54,247.44,7.83699664]
[1757822151900,1.22,247.53,247.44,7.01]
[1757822152503,85.16,247.53,247.44,7.01]
[1757822153404,1.22,247.53,247.44,7.01]
[1757822153810,1.22,247.53,247.45,0.82699664]
[1757822154412,1.22,247.53,247.46,0.82699664]
[1757822154714,1.22,247.53,247.45,0.82699664]
[1757822156214,53.58,247.56,247.48,0.82699664]
[1757822156610,1.22,247.57,247.48,0.82699664]
[1757822156810,31.2,247.57,247.49,6.93]
[1757822157111,1.22,247.57,247.49,6.93]
[1757822157809,0.82699664,247.56,247.45,0.82699664]
[1757822158008,0.82699664,247.53,247.44,6.51]
[1757822159310,1.22,247.52,247.44,6.51]
[1757822159611,0.82699664,247.5,247.44,6.51]
[1757822160414,2.51287846,247.52,247.44,6.51]
[1757822161213,1.22,247.52,247.44,6.51]
[1757822166914,101.0,247.52,247.44,6.51]
[1757822168119,1.22,247.52,247.44,6.51]
[1757822169624,1.29287846,247.5,247.44,6.51]
[1757822169821,1.22,247.52,247.44,6.51]
[1757822170021,1.22,247.52,247.36,6.51]
[1757822170222,1.22,247.48,247.36,6.51]
[1757822172523,1.29287846,247.49,247.36,6.51]
[1757822172718,1.22,247.48,247.36,6.51]
[1757822172924,1.22,247.44,247.36,6.51]
[1757822173124,9.08,247.43,247.36,6.51]
[1757822173325,1.29287846,247.41,247.36,6.51]
[1757822173625,1.22,247.4,247.28,6.51]
[1757822173824,1.22,247.44,247.28,6.51]
[1757822174024,1.29287846,247.42,247.28,6.51]
[1757822174524,1.22,247.44,247.29,6.51]
[1757822174525,2.51287846,247.44,247.29,6.51]
[1757822174723,1.29287846,247.44,247.3,6.51]
[1757822175525,1.29287846,247.44,247.3,4.52619844]
[1757822175723,1.29287846,247.44,247.32,6.51]
[1757822181730,1.22,247.46,247.33,6.51]
[1757822182035,23.77287846,247.5,247.35,6.51]
[1757822183326,1.22,247.45,247.35,6.51]
[1757822183531,1.29287846,247.42,247.35,6.51]
[1757822183726,24.02772728,247.55,247.35,6.51]
[1757822183930,1.29287846,247.46,247.35,6.51]
[1757822184528,1.22,247.45,247.35,6.51]
[1757822185533,1.29287846,247.42,247.35,6.51]
[1757822185731,2.51287846,247.42,247.35,6.51]
[1757822188843,1.29287846,247.4,247.35,6.51]
[1757822189041,2.51287846,247.4,247.35,6.51]
[1757822189237,1.22,247.39,247.26,4.52619844]
[1757822189438,1.22,247.39,247.27,6.83]
[1757822193646,12.11,247.49,247.27,6.83]
[1757822193839,2.52287846,247.42,247.27,6.83]
[1757822194745,1.23,247.41,247.27,6.83]
[1757822196242,19.42,247.4,247.27,6.83]
[1757822196741,1.23,247.39,247.27,6.83]
[1757822199749,1.29287846,247.38,247.27,6.83]
[1757822201148,38.6,247.4,247.27,6.83]
[1757822202246,39.83,247.4,247.27,6.83]
[1757822203550,1.23,247.39,247.27,6.83]
[1757822204650,1.23,247.36,247.27,6.83]
[1757822204954,57.25,247.36,247.23,6.49]
[1757822205848,1.29287846,247.33,247.23,6.49]
[1757822206047,2.52287846,247.33,247.23,6.49]
[1757822206448,1.23,247.33,247.23,6.49]
[1757822207150,1.23,247.29,247.18,6.49]
[1757822207352,1.29287846,247.3,247.18,6.49]
[1757822207748,1.29287846,247.26,247.13,4.52619844]
[1757822207944,1.23,247.25,247.12,11.01619844]
[1757822208146,1.23,247.25,247.12,6.49]
[1757822208449,1.23,247.23,247.12,6.49]
[1757822209550,63.55,247.23,247.12,6.49]
[1757822211550,1.23,247.22,247.12,6.49]
[1757822211749,1.23,247.22,247.07,0.7040615]
[1757822211750,1.23,247.19,247.07,7.1940615]
[1757822212346,1.23,247.19,247.07,6.49]
[1757822213257,72.59,247.19,247.07,6.49]
[1757822213555,1.23,247.19,247.07,6.49]
[1757822213757,12.26778857,247.28,247.07,6.49]
[1757822214056,1.29287846,247.23,247.07,6.49]
[1757822214254,1.23,247.22,247.07,6.49]
[1757822214454,1.29287846,247.23,247.07,6.49]
[1757822214651,100.54,247.27,247.07,6.49]
[1757822214652,1.23,247.18,247.07,6.49]
[1757822215456,1.29287846,247.22,247.07,6.49]
[1757822215656,1.23,247.21,247.07,6.49]
[1757822217246,1.23,247.21,247.01,6.63]
[1757822217247,1.23,247.13,247.01,6.63]
[1757822218054,1.29287846,247.18,247.01,6.63]
[1757822218261,1.29287846,247.17,247.01,6.63]
[1757822219256,1.24,247.19,247.01,7.92287846]
[1757822219559,1.24,247.19,247.01,6.63]
[1757822220558,0.82978993,247.14,247.01,7.45978993]
[1757822221351,1.24,247.14,247.01,6.63]
[1757822221553,0.82978993,247.09,247.01,6.63]
[1757822222554,0.82978993,247.1,247.01,6.63]
[1757822223158,2.06978993,247.1,247.01,6.63]
[1757822224269,4.72,247.16,246.97,6.47]
[1757822224270,0.82978993,247.04,246.97,6.47]
[1757822225662,0.82978993,247.06,246.97,6.47]
[1757822225855,1.24,247.11,246.97,6.47]
[1757822226060,0.82978993,247.08,246.97,6.47]
[1757822226261,0.82978993,247.05,246.97,6.47]
[1757822228255,0.82978993,247.02,246.91,6.47]
[1757822228658,1.24,247.04,246.91,6.47]
[1757822228855,2.06978993,247.04,246.91,6.47]
[1757822230363,2.06978993,247.04,246.91,7.29978993]
[1757822231166,2.06978993,247.04,246.91,6.47]
[1757822232973,1.24,247.0,246.91,6.47]
[1757822233169,0.82978993,246.98,246.91,6.47]
[1757822236867,0.82978993,247.01,246.91,6.47]
[1757822238069,11.32,247.05,246.85,6.47]
[1757822238070,0.82978993,246.98,246.85,6.47]
[1757822238264,0.82978993,246.95,246.85,6.47]
[1757822238469,0.82978993,246.97,246.85,6.47]
[1757822238967,2.06978993,246.97,246.85,6.47]
[1757822239570,0.82978993,246.98,246.85,6.47]
[1757822240875,0.82978993,246.95,246.85,6.47]
[1757822241073,1.24,246.99,246.85,6.47]
[1757822241273,0.82978993,246.96,246.85,6.47]
[1757822242674,0.82978993,246.99,246.88,6.47]
[1757822245074,0.82978993,246.96,246.88,6.47]
[1757822245779,0.82978993,247.05,246.93,6.47]
[1757822245974,0.82978993,247.09,246.96,6.47]
[1757822246776,0.82978993,247.09,246.99,6.47]
[1757822247780,0.82978993,247.06,246.99,6.47]
[1757822248074,1.24,247.09,246.99,6.47]
[1757822248274,0.82978993,247.04,246.99,6.47]
[1757822248581,1.24,247.03,246.9,6.68]
[1757822248779,0.82978993,247.01,246.9,6.68]
[1757822249375,1.24,247.03,246.9,6.68]
[1757822249575,0.82978993,247.01,246.9,6.68]
[1757822250576,0.82978993,247.0,246.9,6.68]
[1757822253084,0.82978993,247.0,246.9,7.50978993]
[1757822254484,0.82978993,247.0,246.9,6.68]
[1757822254979,2.06978993,247.0,246.9,6.68]
[1757822255177,0.82978993,246.97,246.9,6.68]
[1757822257275,0.82978993,246.97,246.84,6.68]
[1757822258684,0.82978993,246.88,246.77,6.68]
[1757822259194,0.82978993,246.91,246.8,6.68]
[1757822259690,0.82978993,246.91,246.8,7.50978993]
[1757822259891,1.24,246.95,246.8,7.50978993]
[1757822260187,0.82978993,246.95,246.84,6.68]
[1757822262889,1.24,246.94,246.84,6.68]
[1757822263597,2.06978993,246.94,246.84,6.68]
[1757822263790,0.82978993,246.94,246.84,6.68]
[1757822263992,1181.04595747,247.31,246.9,6.68]
[1757822263993,1.24,247.02,246.9,6.68]
[1757822264801,1.24,247.02,246.9,7.50978993]
[1757822266098,0.82978993,247.04,246.9,7.50978993]
[1757822266297,1.24,247.06,246.94,6.68]
[1757822266602,0.82978993,247.13,247.0,6.68]
[1757822267302,0.82978993,247.12,247.0,6.68]
[1757822267798,1.24,247.16,247.0,6.68]
[1757822267999,0.82978993,247.12,247.0,6.68]
[1757822269004,0.82978993,247.06,247.0,6.68]
[1757822269406,0.82978993,247.03,246.92,6.68]
[1757822269704,0.82978993,247.02,246.92,6.68]
[1757822270502,6.14287266,247.08,246.92,6.68]
[1757822270699,2.76980924,247.07,246.92,6.68]
[1757822271007,4.01016,247.06,246.92,6.68]
[1757822271208,1.24,247.04,246.92,6.68]
[1757822271505,2.76999205,247.03,246.92,6.68]
[1757822272202,1.24,247.04,246.92,6.68]
[1757822273002,2.77086109,247.03,246.92,6.68]
[1757822273197,1.24,247.04,246.92,6.68]
[1757822273403,2.77104518,247.03,246.92,6.68]
[1757822273702,1.24,247.04,246.92,6.68]
[1757822273896,2.77080608,247.03,246.92,6.68]
[1757822274105,1.24,247.04,246.92,6.68]
[1757822274305,2.77068362,247.03,246.92,6.68]
[1757822274511,2.77052792,247.02,246.92,6.68]
[1757822274707,1.24,247.03,246.92,6.68]
[1757822274904,2.77052667,247.02,246.92,6.68]
[1757822275100,1.24,247.0,246.81,6.83]
[1757822275308,1.24,246.98,246.81,6.83]
[1757822275702,2.76990694,246.97,246.81,6.83]
[1757822275905,1.24,246.98,246.81,6.83]
[1757822276106,2.76985535,246.97,246.81,6.83]